Department Family,Entity,Date,Expenses Type,Expense Area,Supplier,Transaction Number,  Total  
Department of Health,The Christie NHS Foundation Trust,10/03/2022,Blood Products,Network Services,NHS BLOOD AND TRANSPLANT,0000687918," 28,346.66 "
Department of Health,The Christie NHS Foundation Trust,17/03/2022,Medical Equipment,Network Services,VISION RT LTD,0000688426," 86,179.00 "
Department of Health,The Christie NHS Foundation Trust,17/03/2022,Energy Bill,Estates & Facilities,VITAL ENERGI SOLUTIONS LTD,0000688456," 277,312.34 "
Department of Health,The Christie NHS Foundation Trust,17/03/2022,Energy Bill,Estates & Facilities,VITAL ENERGI SOLUTIONS LTD,0000688457," 423,621.20 "
Department of Health,The Christie NHS Foundation Trust,24/03/2022,Drugs,Drugs,BAXTER HEALTHCARE LTD,0000689291," 71,140.27 "
Department of Health,The Christie NHS Foundation Trust,17/03/2022,Haematology Service Transfer - November 2021,Network Services,TAMESIDE AND GLOSSOP INTEGRATED CARE NHS,0000681852," 54,438.24 "
Department of Health,The Christie NHS Foundation Trust,17/03/2022,Haematology Service Transfer - December 2021,Network Services,TAMESIDE AND GLOSSOP INTEGRATED CARE NHS,0000684034," 59,523.00 "
Department of Health,The Christie NHS Foundation Trust,24/03/2022,Drugs,Drugs,BAXTER HEALTHCARE LTD,0000689204," 52,703.38 "
Department of Health,The Christie NHS Foundation Trust,24/03/2022,Drugs,Drugs,BAXTER HEALTHCARE LTD,0000689220," 79,021.30 "
Department of Health,The Christie NHS Foundation Trust,03/03/2022,Multi-Tiered Car Park Works,Capital,VINCI CONSTRUCTION UK LIMITED,0000688553," 528,559.43 "
Department of Health,The Christie NHS Foundation Trust,03/03/2022,Paterson Redevelopment Project Works,Capital,INTEGRATED HEALTH PROJECTS,0000688809," 5,112,518.06 "
Department of Health,The Christie NHS Foundation Trust,24/03/2022,All Wards & Departments ,Christie Medical Physics,NHS SUPPLY CHAIN,0000688584," 56,144.42 "
Department of Health,The Christie NHS Foundation Trust,17/03/2022,The Christie Hospital PSDS Construction Works,Capital,VITAL ENERGI SOLUTIONS LTD,0000679974," 162,745.94 "
Department of Health,The Christie NHS Foundation Trust,23/03/2022,NHS Trust Income - Non Contract,Manchester Cancer,NHS MIDLANDS AND LANCASHIRE COMMISSIONIN,0000687474," 37,440.00 "
Department of Health,The Christie NHS Foundation Trust,23/03/2022,Oesphago-Gastric Cancer funding,Manchester Cancer,NORTHERN CARE ALLIANCE NHS FT,0000689867," 43,539.00 "
Department of Health,The Christie NHS Foundation Trust,23/03/2022,Q3 RDC Services,Manchester Cancer,MANCHESTER UNIVERSITY NHS FT,0000689879," 176,547.00 "
Department of Health,The Christie NHS Foundation Trust,23/03/2022,Q4 RDC Services,Manchester Cancer,MANCHESTER UNIVERSITY NHS FT,0000689937," 521,525.00 "
Department of Health,The Christie NHS Foundation Trust,23/03/2022,RDC Services Funding 2021/2022,Manchester Cancer,STOCKPORT NHS FOUNDATION TRUST,0000690125," 254,000.00 "
Department of Health,The Christie NHS Foundation Trust,03/03/2022,Blood Products,Network Services,NHS BLOOD AND TRANSPLANT,0000685132," 53,650.67 "
Department of Health,The Christie NHS Foundation Trust,03/03/2022,Blood Products,Network Services,NHS BLOOD AND TRANSPLANT,0000687478," 37,456.39 "
Department of Health,The Christie NHS Foundation Trust,10/03/2022,Drugs,Drugs,BAXTER HEALTHCARE LTD,0000688234," 120,449.51 "
Department of Health,The Christie NHS Foundation Trust,03/03/2022,Drugs,Drugs,BAXTER HEALTHCARE LTD,0000687292," 182,621.89 "
Department of Health,The Christie NHS Foundation Trust,17/03/2022,Joinery works,Capital,RW JOINERY (STOCKPORT) LIMITED (TRADING,0000688647," 21,848.19 "
Department of Health,The Christie NHS Foundation Trust,17/03/2022,Drugs,Drugs,BAXTER HEALTHCARE LTD,0000688661," 75,540.42 "
Department of Health,The Christie NHS Foundation Trust,17/03/2022,Drugs,Drugs,BAXTER HEALTHCARE LTD,0000688666," 81,982.49 "
Department of Health,The Christie NHS Foundation Trust,24/03/2022,Drugs,Drugs,BAXTER HEALTHCARE LTD,0000688668," 84,628.78 "
Department of Health,The Christie NHS Foundation Trust,24/03/2022,Drugs,Drugs,BAXTER HEALTHCARE LTD,0000688671," 101,595.34 "
Department of Health,The Christie NHS Foundation Trust,24/03/2022,Medical Equipment,Network Services,GILEAD SCIENCES LTD,0000688774,"-316,118.00 "
Department of Health,The Christie NHS Foundation Trust,24/03/2022,Project Management Fee,Capital,ARCADIS LLP,0000688539," 48,466.92 "
Department of Health,The Christie NHS Foundation Trust,17/03/2022,Patients Accomodation,Network Services,STAYCITY MANCHESTER LTD,0000685617," 146,829.28 "
Department of Health,The Christie NHS Foundation Trust,17/03/2022,Patients Accomodation,Network Services,STAYCITY MANCHESTER LTD,0000686065," 124,929.30 "
Department of Health,The Christie NHS Foundation Trust,17/03/2022,Clinical Activity Charge - February 2022,Network Services,WRIGHTINGTON WIGAN AND LEIGH NHS FT,0000688500," 280,912.29 "
Department of Health,The Christie NHS Foundation Trust,23/03/2022,Month 11 Chemotherapy SLA Invoice,Network Services,STOCKPORT NHS FOUNDATION TRUST,0000688652," 31,073.00 "
Department of Health,The Christie NHS Foundation Trust,23/03/2022,Service Charge of Macmilan Centre - March 2022,Network Services,MID CHESHIRE HOSPITALS NHS FT,0000688973," 53,506.00 "
Department of Health,The Christie NHS Foundation Trust,17/03/2022,GM Pharmacy Logistics Tender,Strategy,HEMPSON SOLICITORS,0000686612," 36,189.00 "
Department of Health,The Christie NHS Foundation Trust,17/03/2022,PFB Contributions,Trust Administration,MANCHESTER UNIVERSITY NHS FT,0000688108," 34,366.00 "
Department of Health,The Christie NHS Foundation Trust,10/03/2022,Electrictiy invoice - January 2022,Network Services,EDF ENERGY,0000688955," 86,965.34 "
Department of Health,The Christie NHS Foundation Trust,10/03/2022,Electrictiy invoice - January 2022,Network Services,EDF ENERGY,0000688956,"-90,991.29 "
Department of Health,The Christie NHS Foundation Trust,10/03/2022,Electrictiy invoice - February 2022,Network Services,EDF ENERGY,0000688957," 85,313.66 "
Department of Health,The Christie NHS Foundation Trust,10/03/2022,Electricity Invoice - November 2021,Network Services,EDF ENERGY,0000688986," 93,391.83 "
Department of Health,The Christie NHS Foundation Trust,24/03/2022,Software Packages,Digital Services,SOFTCAT PLC,0000690446," 28,718.71 "
Department of Health,The Christie NHS Foundation Trust,24/03/2022,All Wards & Departments ,Clinical Support & Specialist Surgery,NHS SUPPLY CHAIN,0000690146," 107,350.58 "
Department of Health,The Christie NHS Foundation Trust,30/03/2022,Digital workplace Backup Solutions,Capital,EUROPEAN ELECTRONIQUE LTD,0000690785," 297,766.37 "
Department of Health,The Christie NHS Foundation Trust,24/03/2022,Drugs,Drugs,BAXTER HEALTHCARE LTD,0000688857," 120,212.46 "
Department of Health,The Christie NHS Foundation Trust,24/03/2022,Christie CEF Construction Works,Capital,VITAL ENERGI SOLUTIONS LTD,0000689149," 1,021,713.35 "
Department of Health,The Christie NHS Foundation Trust,24/03/2022,Drugs,Drugs,SCIENSUS PHARMA SERVICES LIMITED,0000689888," 54,145.00 "
Department of Health,The Christie NHS Foundation Trust,17/03/2022,Patients Accomodation,Network Services,STAYCITY MANCHESTER LTD,0000689582," 170,666.25 "
Department of Health,The Christie NHS Foundation Trust,24/03/2022,Blood Products,Network Services,NHS BLOOD AND TRANSPLANT,0000689911," 33,277.00 "
Department of Health,The Christie NHS Foundation Trust,24/03/2022,The Christie Hospital PSDS Construction Works,Capital,VITAL ENERGI SOLUTIONS LTD,0000689148," 1,087,356.46 "
Department of Health,The Christie NHS Foundation Trust,24/03/2022,Drugs,Drugs,THE CHRISTIE CLINIC (HCA),0000687685," 34,020.00 "
Department of Health,The Christie NHS Foundation Trust,24/03/2022,Consultancy Fees - March 2022,Capital,BAXTER HEALTHCARE LTD,0000690480," 34,200.00 "
Department of Health,The Christie NHS Foundation Trust,23/03/2022,Haematology Service Transfer - January 2021,Network Services,TAMESIDE AND GLOSSOP INTEGRATED CARE NHS,0000690238," 59,523.00 "
Department of Health,The Christie NHS Foundation Trust,23/03/2022,Haematology Service Transfer - February 2021,Network Services,TAMESIDE AND GLOSSOP INTEGRATED CARE NHS,0000690304," 59,523.00 "
Department of Health,The Christie NHS Foundation Trust,23/03/2022,Haematology Service Transfer - March 2021,Network Services,TAMESIDE AND GLOSSOP INTEGRATED CARE NHS,0000690311," 59,523.00 "
Department of Health,The Christie NHS Foundation Trust,24/03/2022,Drugs,Drugs,BAXTER HEALTHCARE LTD,0000690426," 81,920.39 "
Department of Health,The Christie NHS Foundation Trust,24/03/2022,Drugs,Drugs,BAXTER HEALTHCARE LTD,0000690431," 91,949.44 "
Department of Health,The Christie NHS Foundation Trust,24/03/2022,Drugs,Drugs,BAXTER HEALTHCARE LTD,0000690445," 77,834.75 "
Department of Health,The Christie NHS Foundation Trust,24/03/2022,Consultancy Fees - February 2022,Capital,AIRE LOGIC LIMITED,0000689387," 157,920.00 "
Department of Health,The Christie NHS Foundation Trust,10/03/2022,Palatine,Capital,A COPELAND GROUP LTD,0000687775," 25,000.00 "
Department of Health,The Christie NHS Foundation Trust,10/03/2022,Drugs,Drugs,SCIENSUS PHARMA SERVICES LIMITED,0000689297," 45,085.00 "
Department of Health,The Christie NHS Foundation Trust,03/03/2022,ENT SLA 2021/2022,Clinical Support & Specialist Surgery,MANCHESTER UNIVERSITY NHS FT,0000676449," 26,391.00 "
Department of Health,The Christie NHS Foundation Trust,03/03/2022,Clinical Nurse Specialist Recharge Q2 21/22,Clinical Support & Specialist Surgery,MANCHESTER UNIVERSITY NHS FT,0000677987," 28,212.00 "
Department of Health,The Christie NHS Foundation Trust,03/03/2022,Urology SLA 2020/2021,Clinical Support & Specialist Surgery,MANCHESTER UNIVERSITY NHS FT,0000679603," 46,337.05 "
Department of Health,The Christie NHS Foundation Trust,24/03/2022,Medical Equipment,Capital,OLYMPUS KEYMED,0000689212," 200,302.80 "
Department of Health,The Christie NHS Foundation Trust,03/03/2022,Drugs,Drugs,SCIENSUS PHARMA SERVICES LIMITED,0000687887," 44,739.00 "
Department of Health,The Christie NHS Foundation Trust,10/03/2022,System Support maintenance - March 2022,Digital Services,SYSTEM C HEALTHCARE,0000687700," 23,362.71 "
Department of Health,The Christie NHS Foundation Trust,03/03/2022,Medical Equipment,Christie Medical Physics,ADVANCED ACCELERATOR APPLICATIONS LTD,0000686979," 106,800.00 "
Department of Health,The Christie NHS Foundation Trust,10/03/2022,Medical Equipment Service Contract,Network Services,VARIAN MEDICAL SYSTEMS UK LTD,0000686813," 255,164.38 "
Department of Health,The Christie NHS Foundation Trust,24/03/2022,Print Mangement Service,Digital Services,APOGEE CORPORATION LTD,0000688630," 37,544.10 "
Department of Health,The Christie NHS Foundation Trust,24/03/2022,Computer Equipment,Capital,INSIGHT DIRECT (UK) LTD,0000688734," 47,146.56 "
Department of Health,The Christie NHS Foundation Trust,10/03/2022,Service Agreement 2022-2023,Network Services,SIEMENS HEALTHCARE LIMITED,0000688629," 59,380.80 "
Department of Health,The Christie NHS Foundation Trust,24/03/2022,Drugs,Drugs,BAXTER HEALTHCARE LTD,0000689136," 65,274.40 "
Department of Health,The Christie NHS Foundation Trust,24/03/2022,Drugs,Drugs,BAXTER HEALTHCARE LTD,0000689160," 91,448.32 "
Department of Health,The Christie NHS Foundation Trust,03/03/2022,Drugs,Drugs,BAXTER HEALTHCARE LTD,0000687495," 79,970.84 "
Department of Health,The Christie NHS Foundation Trust,30/03/2022,Energy Bill,Estates & Facilities,VITAL ENERGI SOLUTIONS LTD,0000690425," 555,664.88 "
Department of Health,The Christie NHS Foundation Trust,30/03/2022,Drugs,Drugs,BAXTER HEALTHCARE LTD,0000691206," 82,592.94 "
Department of Health,The Christie NHS Foundation Trust,30/03/2022,Drugs,Drugs,BAXTER HEALTHCARE LTD,0000691220," 89,640.05 "
Department of Health,The Christie NHS Foundation Trust,10/03/2022,Drugs,Drugs,BAXTER HEALTHCARE LTD,0000687960," 86,618.60 "
Department of Health,The Christie NHS Foundation Trust,03/03/2022,Clinical Nurse Specialist Recharge Q3 21/22,Clinical Support & Specialist Surgery,MANCHESTER UNIVERSITY NHS FT,0000684673," 28,212.00 "
Department of Health,The Christie NHS Foundation Trust,24/03/2022,Quality Assurance,School of Oncology,SKILLS FOR HEALTH LTD,0000688624," 21,400.00 "
Department of Health,The Christie NHS Foundation Trust,10/03/2022,GM Docman Project 2021/2022,Digital Services,MANCHESTER UNIVERSITY NHS FT,0000687807," 31,178.79 "
Department of Health,The Christie NHS Foundation Trust,17/03/2022,Drugs,Drugs,BAXTER HEALTHCARE LTD,0000688242," 69,113.28 "
Department of Health,The Christie NHS Foundation Trust,17/03/2022,Drugs,Drugs,BAXTER HEALTHCARE LTD,0000688259," 72,644.46 "
Department of Health,The Christie NHS Foundation Trust,03/03/2022,PET Scans Jan 22,Christie Medical Physics,ALLIANCE MEDICAL LTD,0000686882," 167,860.00 "
Department of Health,The Christie NHS Foundation Trust,23/03/2022,Drugs,Drugs,TAMESIDE AND GLOSSOP INTEGRATED CARE NHS,0000684032," 97,872.59 "
Department of Health,The Christie NHS Foundation Trust,23/03/2022,NHS Trust Income - Non Contract,Manchester Cancer,NHS MIDLANDS AND LANCASHIRE COMMISSIONIN,0000688634," 30,110.00 "
Department of Health,The Christie NHS Foundation Trust,24/03/2022,Computer Equipment,Capital,INSIGHT DIRECT (UK) LTD,0000689540," 43,060.42 "
Department of Health,The Christie NHS Foundation Trust,10/03/2022,Medical Services,Manchester Cancer,VIADUCT CARE CIC,0000689400," 268,000.00 "
Department of Health,The Christie NHS Foundation Trust,10/03/2022,All Wards & Departments ,The Christie NHS FT Balance,NHS SUPPLY CHAIN,0000689440," 68,013.25 "
Department of Health,The Christie NHS Foundation Trust,10/03/2022,All Wards & Departments ,The Christie NHS FT Balance,NHS SUPPLY CHAIN,0000689441," 76,154.48 "
Department of Health,The Christie NHS Foundation Trust,10/03/2022,All Wards & Departments ,The Christie NHS FT Balance,NHS SUPPLY CHAIN,0000689442," 75,148.85 "
Department of Health,The Christie NHS Foundation Trust,10/03/2022,Consultancy Fees - December 2021,Capital,AIRE LOGIC LIMITED,0000689126," 47,860.00 "
Department of Health,The Christie NHS Foundation Trust,30/03/2022,PET Scans Feb 22,Christie Medical Physics,ALLIANCE MEDICAL LTD,0000688427," 76,590.00 "
Department of Health,The Christie NHS Foundation Trust,30/03/2022,Drugs,Christie Medical Physics,ALLIANCE MEDICAL RADIOPHARMACY LIMITED,0000689531," 35,334.00 "
Department of Health,The Christie NHS Foundation Trust,30/03/2022,Computer Equipment,Digital Services,CCS MEDIA LIMITED,0000690707," 72,014.76 "
Department of Health,The Christie NHS Foundation Trust,03/03/2022,Drugs,Drugs,BAXTER HEALTHCARE LTD,0000687102," 88,526.04 "
Department of Health,The Christie NHS Foundation Trust,24/03/2022,Support and Maintenance Package 2022-2023,Digital Services,INTERWORKS EUROPE LTD,0000689645," 62,365.00 "
Department of Health,The Christie NHS Foundation Trust,17/03/2022,Drugs,Drugs,BAXTER HEALTHCARE LTD,0000688314," 100,344.19 "
Department of Health,The Christie NHS Foundation Trust,24/03/2022,Drugs,Drugs,BAXTER HEALTHCARE LTD,0000689815," 115,375.96 "
Department of Health,The Christie NHS Foundation Trust,24/03/2022,Drugs,Drugs,BAXTER HEALTHCARE LTD,0000689819," 75,644.54 "
Department of Health,The Christie NHS Foundation Trust,10/03/2022,Drugs,Drugs,BAXTER HEALTHCARE LTD,0000688224," 70,641.84 "
Department of Health,The Christie NHS Foundation Trust,10/03/2022,Drugs,Drugs,BAXTER HEALTHCARE LTD,0000688228," 92,838.64 "
Department of Health,The Christie NHS Foundation Trust,10/03/2022,Drugs,Drugs,BAXTER HEALTHCARE LTD,0000688236," 120,542.80 "
Department of Health,The Christie NHS Foundation Trust,24/03/2022,Webinar Subscription - 3 Years,Manchester Cancer,O'HALLORAN CONSULTANCY LIMITED,0000688901," 52,500.00 "
Department of Health,The Christie NHS Foundation Trust,03/03/2022,Software Licencing Fee,Finance & Business Developmentent,CAPITA SECURE INFORMATION SOLUTIONS LTD,0000688173," 70,533.00 "
Department of Health,The Christie NHS Foundation Trust,24/03/2022,GM Pharmacy Logistics Tender,Strategy,HEMPSON SOLICITORS,0000688300," 46,852.00 "
Department of Health,The Christie NHS Foundation Trust,24/03/2022,Software Packages,Capital,SOFTCAT PLC,0000690616," 250,000.00 "
Department of Health,The Christie NHS Foundation Trust,17/03/2022,Medical Equipment,Capital,ENVAIR LTD,0000689766," 47,416.80 "
Department of Health,The Christie NHS Foundation Trust,24/03/2022,Drugs,Drugs,THE CHRISTIE CLINIC (HCA),0000684476," 36,111.00 "
Department of Health,The Christie NHS Foundation Trust,24/03/2022,Drugs,Drugs,THE CHRISTIE CLINIC (HCA),0000685600," 28,904.00 "
Department of Health,The Christie NHS Foundation Trust,24/03/2022,Medical Equipment,Network Services,GILEAD SCIENCES LTD,0000690164," 224,360.80 "
Department of Health,The Christie NHS Foundation Trust,17/03/2022,Medical Equipment,Capital,ENVAIR LTD,0000689765," 47,416.80 "
Department of Health,The Christie NHS Foundation Trust,03/03/2022,RDC Services,Manchester Cancer,WRIGHTINGTON WIGAN AND LEIGH NHS FT,0000687489," 253,896.00 "
Department of Health,The Christie NHS Foundation Trust,03/03/2022,Clinical Activity Charge - February 2022,Manchester Cancer,WRIGHTINGTON WIGAN AND LEIGH NHS FT,0000687494," 250,080.00 "
Department of Health,The Christie NHS Foundation Trust,03/03/2022,RDC Programme Services,Manchester Cancer,NORTHERN CARE ALLIANCE NHS FT,0000687932," 263,625.00 "
Department of Health,The Christie NHS Foundation Trust,30/03/2022,PET Scans Feb 22,Christie Medical Physics,ALLIANCE MEDICAL LTD,0000690509," 99,570.00 "
Department of Health,The Christie NHS Foundation Trust,10/03/2022,All Wards & Departments ,The Christie NHS FT Balance,NHS SUPPLY CHAIN,0000689437," 95,308.86 "
Department of Health,The Christie NHS Foundation Trust,17/03/2022,Multi-Tiered Car Park Works,Capital,VINCI CONSTRUCTION UK LIMITED,0000689370," 518,949.12 "
Department of Health,The Christie NHS Foundation Trust,24/03/2022,Medical Equipment,Capital,PARITY COMPUTERS LTD,0000689544," 120,732.00 "
Department of Health,The Christie NHS Foundation Trust,30/03/2022,Medical Equipment,Capital,OLYMPUS KEYMED,0000690744," 87,302.69 "
Department of Health,The Christie NHS Foundation Trust,30/03/2022,Refirbishment works,Research & Innovation,INGHAM AND GARNER LTD,0000690644," 43,089.36 "
Department of Health,The Christie NHS Foundation Trust,30/03/2022,Digital workplace Backup Solutions,Capital,EUROPEAN ELECTRONIQUE LTD,0000691102," 33,628.25 "
Department of Health,The Christie NHS Foundation Trust,03/03/2022,Drugs,Drugs,BAXTER HEALTHCARE LTD,0000687120," 58,981.25 "
Department of Health,The Christie NHS Foundation Trust,24/03/2022,Medical Equipment,Capital,IT'S INTERVENTIONAL LTD,0000689063," 29,988.00 "
Department of Health,The Christie NHS Foundation Trust,03/03/2022,Clinical Activity Charge - December 2021,Network Services,WRIGHTINGTON WIGAN AND LEIGH NHS FT,0000683353," 284,133.51 "
Department of Health,The Christie NHS Foundation Trust,03/03/2022,Clinical Activity Charge - January 2021,Network Services,WRIGHTINGTON WIGAN AND LEIGH NHS FT,0000685782," 280,912.29 "
Department of Health,The Christie NHS Foundation Trust,10/03/2022,Pathology Testing Services - January 2022,Christie Pathology Partner,THE CHRISTIE PATHOLOGY PARTNERSHIP LLP,0000688379," 495,762.21 "
Department of Health,The Christie NHS Foundation Trust,10/03/2022,Facilities Management Services - January 2022,Christie Pathology Partner,CPP FACILITIES LLP,0000688381," 235,604.37 "
Department of Health,The Christie NHS Foundation Trust,24/03/2022,Drugs,Drugs,SCIENSUS PHARMA SERVICES LIMITED,0000689881," 34,669.00 "
Department of Health,The Christie NHS Foundation Trust,23/03/2022,Drugs,Drugs,MID CHESHIRE HOSPITALS NHS FT,0000684437," 195,961.38 "
Department of Health,The Christie NHS Foundation Trust,23/03/2022,Drugs,Drugs,MID CHESHIRE HOSPITALS NHS FT,0000687327," 187,442.86 "
Department of Health,The Christie NHS Foundation Trust,17/03/2022,Drugs,Drugs,SCIENSUS PHARMA SERVICES LIMITED,0000689294," 29,763.00 "
Department of Health,The Christie NHS Foundation Trust,03/03/2022,Car Parking Charge Q3 & Q4,Estates & Facilities,MANCHESTER UNIVERSITY NHS FT,0000686954," 28,125.00 "
Department of Health,The Christie NHS Foundation Trust,17/03/2022,The Christie Hospital PSDS Construction Works,Capital,VITAL ENERGI SOLUTIONS LTD,0000686773," 758,049.10 "
Department of Health,The Christie NHS Foundation Trust,15/03/2022,Blood Products,Network Services,DD NHS BLOOD AND TRANSPLANT,0000687917," 160,265.00 "
Department of Health,The Christie NHS Foundation Trust,30/03/2022,Pathology Testing Services - February 2022,Christie Pathology Partner,THE CHRISTIE PATHOLOGY PARTNERSHIP LLP,0000690764," 482,906.43 "
Department of Health,The Christie NHS Foundation Trust,30/03/2022,Facilities Management Services - February 2022,Christie Pathology Partner,CPP FACILITIES LLP,0000690766," 229,494.83 "
Department of Health,The Christie NHS Foundation Trust,23/03/2022,Oesphago-Gastric Cancer funding,Manchester Cancer,NORTHERN CARE ALLIANCE NHS FT,0000689207," 51,350.00 "
Department of Health,The Christie NHS Foundation Trust,17/03/2022,Rapid Diagnostics,Manchester Cancer,TAMESIDE AND GLOSSOP INTEGRATED CARE NHS,0000689438," 254,671.00 "
Department of Health,The Christie NHS Foundation Trust,24/03/2022,Drugs,Drugs,THE CHRISTIE CLINIC (HCA),0000689243," 35,100.00 "
Department of Health,The Christie NHS Foundation Trust,24/03/2022,Drugs,Drugs,BAXTER HEALTHCARE LTD,0000689988," 70,573.32 "
Department of Health,The Christie NHS Foundation Trust,23/03/2022,Medical Equipment,Manchester Cancer,NORTHERN CARE ALLIANCE NHS FT,0000690075," 28,890.00 "
Department of Health,The Christie NHS Foundation Trust,24/03/2022,Medical Equipment,Network Services,GILEAD SCIENCES LTD,0000688775," 227,605.00 "
Department of Health,The Christie NHS Foundation Trust,10/03/2022,Consultancy Fees - October 2021,Capital,AIRE LOGIC LIMITED,0000689118," 46,950.00 "
Department of Health,The Christie NHS Foundation Trust,24/03/2022,Drugs,Drugs,BAXTER HEALTHCARE LTD,0000689774," 154,915.44 "
Department of Health,The Christie NHS Foundation Trust,24/03/2022,Drugs,Drugs,BAXTER HEALTHCARE LTD,0000689822," 186,552.41 "
Department of Health,The Christie NHS Foundation Trust,30/03/2022,PET Scans Feb 22,Christie Medical Physics,ALLIANCE MEDICAL LTD,0000689027," 195,110.00 "
Department of Health,The Christie NHS Foundation Trust,30/03/2022,All Wards & Departments ,Clinical Support & Specialist Surgery,NHS SUPPLY CHAIN,0000690584," 26,751.00 "
Department of Health,The Christie NHS Foundation Trust,30/03/2022,Project Management Fee,Capital,ARCADIS LLP,0000690638," 48,466.92 "
Department of Health,The Christie NHS Foundation Trust,30/03/2022,Medical Equipment,Strategy,ICU UK MEDICAL LIMITED,0000691081," 236,458.91 "
Department of Health,The Christie NHS Foundation Trust,03/03/2022,Drugs,Christie Medical Physics,ALLIANCE MEDICAL RADIOPHARMACY LIMITED,0000686836," 37,440.00 "
Department of Health,The Christie NHS Foundation Trust,24/03/2022,Clinical Trials Expenditure,Research & Innovation,UNIVERSITY OF LIVERPOOL,0000689312," 56,409.52 "
Department of Health,The Christie NHS Foundation Trust,30/03/2022,Clinical Trials Expenditure,Research & Innovation,UNIVERSITY OF LIVERPOOL,0000690843," 47,040.26 "
Department of Health,The Christie NHS Foundation Trust,10/03/2022,PET Scans Dec 21,Manchester Cancer,ALLIANCE MEDICAL LTD,0000686635," 43,550.00 "
Department of Health,The Christie NHS Foundation Trust,24/03/2022,Drugs,Drugs,BAXTER HEALTHCARE LTD,0000689279," 358,148.40 "
Department of Health,The Christie NHS Foundation Trust,30/03/2022,Drugs,Drugs,BAXTER HEALTHCARE LTD,0000690476," 129,424.72 "
Department of Health,The Christie NHS Foundation Trust,30/03/2022,Medical Equipment,Capital,SIEMENS HEALTHCARE LIMITED,0000689618," 1,204,080.00 "
Department of Health,The Christie NHS Foundation Trust,24/03/2022,Print Mangement Service,Capital,APOGEE CORPORATION LTD,0000689562," 29,760.00 "
Department of Health,The Christie NHS Foundation Trust,24/03/2022,Medical Equipment,Capital,ENVAIR LTD,0000689764," 47,416.80 "
Department of Health,The Christie NHS Foundation Trust,30/03/2022,Computer Equipment,Capital,INSIGHT DIRECT (UK) LTD,0000690612," 180,637.85 "
Department of Health,The Christie NHS Foundation Trust,24/03/2022,Medical Equipment,Capital,AECOM LIMITED,0000690578," 21,622.50 "
Department of Health,The Christie NHS Foundation Trust,30/03/2022,Blood Products,Network Services,THE ANTHONY NOLAN BONE MARROW,0000690961," 31,110.00 "
Department of Health,The Christie NHS Foundation Trust,30/03/2022,Palatine,Capital,A COPELAND GROUP LTD,0000691005," 23,359.63 "
Department of Health,The Christie NHS Foundation Trust,24/03/2022,NHS Patients Fee,Other Income Levies and Grants,THE CHRISTIE CLINIC (HCA),0000688985," 185,152.75 "
Department of Health,The Christie NHS Foundation Trust,30/03/2022,Software Licencing Fee,Strategy,IQ HEALTH TECH LTD,0000690288," 211,041.60 "
